bitfinex/quotes_ETHUSD_20241217
["timestamp","ask_amount","ask_price","bid_price","bid_amount"]
[1734443701853,0.8302,4004.5,4002.1,8.73]
[1734443702051,0.8302,4004.5,4002.5,0.7574]
[1734443702254,0.8302,4004.5,4002.7,1.03733912]
[1734443702456,0.8302,4004.5,4002.9,1.03733912]
[1734443702694,0.8302,4004.5,4003.1,3.55]
[1734443702889,0.8302,4004.5,4003.1,0.55]
[1734443709601,0.8302,4004.5,4003.3,0.55]
[1734443709811,0.8302,4004.5,4003.6,3.0]
[1734443709990,0.8302,4004.5,4003.2,0.7574]
[1734443709991,0.8302,4004.5,4003.7,0.55]
[1734443710191,0.8302,4004.5,4003.2,0.7574]
[1734443710192,0.8302,4004.5,4003.3,0.55]
[1734443710403,0.8302,4004.5,4003.5,0.55]
[1734443711274,0.8302,4004.5,4003.7,3.0]
[1734443711470,0.8302,4004.5,4003.5,0.55]
[1734443712618,0.8302,4004.5,4003.0,3.29500836]
[1734443712619,0.8302,4004.5,4003.1,0.55]
[1734443712822,0.8302,4004.5,4003.3,0.55]
[1734443713107,0.8302,4004.5,4003.5,0.55]
[1734443713674,0.8302,4004.5,4003.4,0.55]
[1734443715030,0.8302,4004.5,4003.5,3.0]
[1734443715241,0.8302,4004.5,4003.6,0.55]
[1734443715545,0.8302,4004.5,4003.8,0.55]
[1734443715748,0.8302,4004.5,4003.9,0.16084084]
[1734443716045,0.8302,4004.5,4003.2,0.12631709]
[1734443716178,0.8302,4004.5,4002.7,1.5512377]
[1734443716179,0.8302,4004.5,4002.7,1.03415847]
[1734443716385,0.8302,4004.5,4002.8,1.2047246]
[1734443716612,0.8302,4004.5,4002.6,1.03415847]
[1734443716811,0.8302,4004.5,4002.8,0.29500836]
[1734443717824,0.8302,4004.5,4002.3,1.03415847]
[1734443718126,0.8302,4004.5,4002.0,2.3378621]
[1734443718127,0.8139,4004.3,4002.4,0.25853962]
[1734443718309,0.8139,4004.3,4001.6,1.5512377]
[1734443718310,0.8139,4004.3,4001.5,9.76415847]
[1734443718508,0.8139,4004.1,4001.6,0.12313734]
[1734443718709,0.8139,4004.1,4001.3,0.29500836]
[1734443718897,0.8139,4003.9,4001.3,0.29500836]
[1734443719099,0.8139,4003.8,4001.3,0.29500836]
[1734443719285,0.8139,4003.6,4001.3,0.29500836]
[1734443719623,0.85514948,4003.5,4001.3,0.29500836]
[1734443719943,0.8139,4003.5,4001.3,0.29500836]
[1734443720433,0.8139,4003.5,4001.4,0.01792688]
[1734443720931,0.8139,4003.5,4001.8,3.0]
[1734443721134,0.96252444,4003.4,4001.9,0.31792464]
[1734443721459,0.96252444,4003.4,4001.9,0.01792464]
[1734443721766,0.96252444,4003.4,4001.4,0.29500836]
[1734443721767,0.96252444,4003.4,4001.5,0.56792463]
[1734443722063,0.8139,4003.4,4001.5,0.56792463]
[1734443722233,0.8139,4003.4,4001.5,0.55]
[1734443722452,0.8139,4003.4,4001.6,0.55]
[1734443722976,0.8139,4003.4,4000.7,1.5512377]
[1734443722977,0.8139,4003.4,4000.7,1.03415847]
[1734443723129,0.8139,4003.2,4000.3,1.32916683]
[1734443723330,0.8139,4003.2,4000.4,0.28804045]
[1734443723651,0.8139,4003.2,4000.4,0.29500836]
[1734443724252,0.8139,4003.2,4000.5,0.55]
[1734443724639,0.8139,4003.2,4000.5,0.84500836]
[1734443725264,0.8139,4003.2,4000.6,0.29500836]
[1734443725566,0.8139,4003.2,4000.7,0.55]
[1734443726417,0.8139,4003.0,4000.7,0.55]
[1734443727454,0.8139,4003.0,4001.5,3.0]
[1734443727677,0.8139,4003.0,4000.7,0.84500836]
[1734443728357,0.8139,4003.0,4000.9,0.55]
[1734443729432,0.8139,4003.0,4000.5,0.55]
[1734443729629,0.8139,4003.0,4001.5,3.0]
[1734443729835,0.8139,4003.0,4000.7,0.55]
[1734443730034,0.8139,4003.0,4000.4,0.12729863]
[1734443730035,0.8139,4003.0,4000.5,0.55]
[1734443730470,0.8139,4003.0,4000.6,0.29500836]
[1734443730772,0.8139,4003.0,4000.7,0.55]
[1734443732728,0.8139,4003.0,4000.8,0.7828]
[1734443732935,0.8139,4003.0,4000.9,0.84500836]
[1734443733359,0.8139,4003.0,4001.0,0.01481964]
[1734443734263,0.8139,4003.0,4000.7,0.55]
[1734443734571,0.8139,4003.0,4000.8,0.01513404]
[1734443734771,0.8139,4003.0,4001.0,0.55]
[1734443734935,0.8139,4003.0,4001.1,0.01514648]
[1734443735361,0.8139,4003.0,4000.9,0.56514648]
[1734443735946,0.8139,4003.0,4000.9,0.55]
[1734443736179,0.8139,4003.0,4000.9,0.56696855]
[1734443736566,0.8139,4003.0,4001.0,0.02498565]
[1734443736773,0.8139,4003.0,4001.9,3.0]
[1734443736966,0.8139,4003.0,4000.8,0.55]
[1734443737169,0.8139,4003.0,4000.5,0.55]
[1734443737338,0.8139,4003.0,4000.7,0.55]
[1734443738658,0.7962,4002.9,4000.7,0.55]
[1734443738870,0.7962,4002.9,4000.6,1.3485107]
[1734443739081,0.7962,4002.9,4000.0,9.02500836]
[1734443739082,0.7962,4002.9,4000.0,0.29500836]
[1734443740082,0.7962,4002.9,4000.0,0.42084533]
[1734443740245,0.7962,4002.9,4000.1,0.55]
[1734443743190,0.7962,4002.9,4000.1,0.67373852]
[1734443743791,0.7962,4002.9,4000.3,0.55]
[1734443743949,0.7962,4002.7,4001.1,3.0]
[1734443744451,0.7962,4002.7,4000.5,0.55]
[1734443744860,0.7962,4002.7,4001.1,3.0]
[1734443745060,0.7962,4002.7,4000.6,0.29500836]
[1734443745355,0.7962,4002.7,4001.1,3.0]
[1734443745687,0.7962,4002.5,4001.1,3.0]
[1734443745986,0.7655,4002.4,4000.5,0.55]
[1734443746196,0.7655,4002.4,4001.1,3.0]
[1734443746483,0.7655,4002.4,4000.2,0.55]
[1734443746693,0.7655,4002.2,4001.1,3.0]
[1734443747068,0.7655,4002.2,4000.2,0.57499037]
[1734443747265,0.7655,4002.2,4000.2,0.86999873]
[1734443747452,0.7655,4002.2,4001.1,3.0]
[1734443747793,0.7655,4002.2,4000.2,0.84500836]
[1734443747993,0.7655,4002.2,4001.1,3.0]
[1734443748510,0.7655,4002.2,4000.2,0.84500836]
[1734443749054,0.7655,4002.2,4000.2,0.55]
[1734443749285,0.7655,4002.2,4001.0,3.0]
[1734443749493,0.7655,4002.2,4000.4,0.55]
[1734443750153,0.7655,4002.2,4000.5,0.55]
[1734443750355,0.7655,4002.2,4001.0,3.0]
[1734443750604,0.7655,4002.2,4001.0,0.3]
[1734443750801,0.7655,4002.2,4001.0,3.0]
[1734443751015,0.7655,4002.2,4000.5,0.55]
[1734443751229,0.7655,4002.2,4001.0,3.0]
[1734443751356,0.7655,4002.2,4000.5,0.55]
[1734443751558,0.7655,4002.2,4001.0,3.0]
[1734443751791,0.7655,4002.2,4000.2,0.55]
[1734443751992,0.7655,4002.2,4001.0,3.0]
[1734443752462,0.7655,4002.2,4000.2,0.55]
[1734443752893,0.7655,4002.2,4000.1,0.55]
[1734443753321,0.7655,4002.1,4000.8,3.0]
[1734443753608,0.7655,4002.1,4000.9,0.55]
[1734443753961,0.7655,4002.1,4001.0,0.29500836]
[1734443754166,0.7655,4002.1,4001.4,3.0]
[1734443754667,0.7655,4002.1,4001.5,0.55]
[1734443754857,0.7655,4002.1,4001.6,0.02498023]
[1734443755063,0.7655,4002.1,4002.0,3.0]
[1734443755315,0.7655,4002.1,4002.0,0.3]
[1734443755459,0.7655,4002.1,4001.1,0.55]
[1734443755658,0.7655,4002.1,4001.1,0.84500836]
[1734443758327,0.7655,4002.1,4001.2,0.29500836]
[1734443758687,0.7655,4002.1,4001.3,0.55]
[1734443759089,0.7655,4002.1,4001.3,0.29500836]
[1734443759272,3.8965101,4004.1,4001.5,0.55]
[1734443759273,0.7655,4002.5,4001.5,0.55]
[1734443759712,0.7655,4002.5,4001.7,0.55]
[1734443760605,0.7655,4002.5,4001.7,0.84500836]
[1734443760902,0.7655,4002.5,4001.8,0.02498156]
[1734443761067,0.7847,4004.2,4001.9,0.55]
[1734443761266,0.7847,4004.2,4001.8,3.31998992]
[1734443761267,0.7847,4004.2,4002.1,0.55]
[1734443761597,0.7847,4004.2,4002.3,0.55]
[1734443762788,0.7847,4004.2,4002.5,0.55]
[1734443763166,0.7847,4004.2,4002.4,0.55]
[1734443763367,0.7847,4004.2,4002.3,0.55]
[1734443763599,0.7847,4004.0,4002.3,3.55]
[1734443763903,0.7847,4004.0,4002.5,0.55]
[1734443764465,0.86268303,4003.9,4002.5,0.55]
[1734443764662,0.7847,4003.8,4002.5,0.55]
[1734443765076,0.7847,4003.8,4002.1,0.55]
[1734443765301,0.7847,4003.8,4002.0,0.55]
[1734443765605,0.96727167,4003.8,4002.2,0.55]
[1734443765828,0.96727167,4003.8,4002.0,0.55]
[1734443766104,0.96727167,4003.8,4001.9,0.55]
[1734443766305,0.96727167,4003.8,4002.1,0.55]
[1734443766733,0.96727167,4003.8,4001.8,1.03415847]
[1734443766734,0.96727167,4003.8,4001.9,0.55]
[1734443766930,0.96727167,4003.8,4002.1,0.55]
[1734443767284,0.7847,4003.8,4002.1,0.55]
[1734443768237,0.7847,4003.8,4002.2,0.29500836]
[1734443768381,0.7847,4003.8,4002.3,0.55]
[1734443768733,0.7847,4003.8,4002.0,1.50515338]
[1734443768734,0.7847,4003.8,4002.1,0.55]
[1734443772689,0.7847,4003.8,4001.9,0.55]
[1734443772926,0.7847,4003.6,4002.1,0.55]
[1734443773904,0.7847,4003.6,4002.8,3.0]
[1734443774082,0.7847,4003.6,4002.1,0.55]
[1734443774681,0.7847,4003.6,4002.3,0.55]
[1734443774945,0.7847,4003.6,4002.3,0.84500836]
[1734443776402,0.7847,4003.6,4002.1,0.55]
[1734443776604,0.7847,4003.6,4002.3,0.55]
[1734443777588,0.7847,4003.6,4002.1,0.55]
[1734443778641,0.7847,4003.6,4001.9,0.55]
[1734443779032,0.7847,4003.6,4001.7,0.55]
[1734443780866,0.7847,4003.6,4001.6,0.18791668]
[1734443781031,0.8318,4003.4,4001.5,0.41872496]
[1734443781444,0.8318,4003.4,4001.5,0.1237166]
[1734443781695,0.8318,4003.4,4001.0,0.29500836]
[1734443781834,0.8318,4003.4,4001.1,1.20829218]
[1734443782035,0.8318,4003.4,4001.0,0.29500836]
[1734443782288,0.8318,4003.2,4001.1,0.50647504]
[1734443783533,0.8318,4003.2,4001.2,0.55]
[1734443783935,0.86179853,4003.1,4001.2,0.55]
[1734443784208,0.86179853,4003.1,4000.7,0.24961267]
[1734443784209,0.8318,4002.9,4000.7,0.55]
[1734443784381,0.8318,4002.9,4000.5,1.03415847]
[1734443784382,0.8318,4002.9,4000.5,0.55]
[1734443784546,0.8318,4002.7,4000.7,3.84500836]
[1734443784745,0.8318,4002.7,4000.7,0.84500836]
[1734443785066,0.8318,4002.7,4001.5,3.0]
[1734443785269,0.8318,4002.7,4000.7,0.84500836]
[1734443786089,0.8318,4002.7,4001.5,3.0]
[1734443786251,0.8318,4002.5,4001.5,3.0]
[1734443786452,0.8318,4002.5,4000.7,0.29500836]
[1734443786960,0.8318,4002.5,4000.3,0.29500836]
[1734443787495,0.8318,4002.5,4000.4,0.55]
[1734443790300,0.8318,4002.5,4000.5,0.01430286]
[1734443790480,0.20788265,4002.4,4000.5,0.01430286]
[1734443790695,0.8318,4002.3,4000.5,3.01430286]
[1734443790882,0.8318,4002.3,4000.6,0.55]
[1734443791088,0.8318,4002.3,4000.7,0.01430214]
[1734443791396,0.8318,4002.3,4000.8,0.29500836]
[1734443791563,0.8318,4002.3,4000.9,0.01430142]
[1734443791758,0.8318,4002.3,4000.9,0.56430142]
[1734443792158,0.8318,4002.3,4000.9,0.55]
[1734443792357,0.8318,4002.3,4001.0,0.55]
[1734443794428,0.8318,4002.3,4001.2,0.55]
[1734443794716,0.8318,4002.3,4001.1,1.20867819]
[1734443794717,0.8318,4002.3,4001.4,4.3355]
[1734443794877,0.8318,4002.3,4001.4,1.3355]
[1734443795074,0.8318,4002.7,4001.6,0.55]
[1734443795286,0.8318,4002.7,4001.6,5.05338077]
[1734443795488,0.8318,4002.7,4001.8,0.55]
[1734443795695,0.8318,4002.7,4001.7,4.20837241]
[1734443795696,0.8318,4002.7,4002.0,0.55]
[1734443795919,0.8318,4002.7,4001.7,0.55]
[1734443796108,0.8318,4002.7,4001.6,0.55]
[1734443798678,0.8318,4002.7,4001.5,0.55]
[1734443799499,0.8318,4002.7,4001.4,8.73]
[1734443799500,0.8318,4002.7,4001.4,0.55]
[1734443799698,0.8318,4002.7,4001.2,0.55]
[1734443799908,0.8318,4002.7,4001.4,0.55]
[1734443800216,0.8318,4002.7,4001.8,3.0]
[1734443800538,0.8318,4002.7,4001.4,0.55]
[1734443803932,0.8318,4002.7,4001.0,0.55]
[1734443804080,0.8318,4002.7,4000.9,1.58415847]
[1734443804294,0.8318,4002.7,4000.8,3.0]
[1734443804295,0.8318,4002.7,4001.1,0.55]
[1734443804812,0.8318,4002.7,4001.0,0.72159045]
[1734443805204,0.8318,4002.5,4000.4,1.45098719]
[1734443805401,0.8318,4002.5,4000.5,1.21019339]
[1734443805604,0.8318,4002.5,4000.6,1.21019339]
[1734443805905,0.8318,4002.5,4000.5,1.32916683]
[1734443805906,0.8318,4002.5,4000.7,0.29500836]
[1734443806100,0.8318,4002.5,4000.8,0.55]
[1734443807338,0.8318,4002.5,4000.4,4.28225395]
[1734443807339,1.01908167,4002.5,4000.5,0.55]
[1734443808670,0.8318,4002.5,4000.7,0.55]
[1734443808829,0.8318,4002.5,4000.8,0.29500836]
[1734443809033,0.8318,4002.5,4000.9,1.75977871]
[1734443809245,0.8318,4002.5,4001.1,0.55]
[1734443810015,0.8318,4002.5,4001.1,1.61920836]
[1734443810222,0.8318,4002.5,4001.3,0.55]
[1734443810522,0.8318,4002.5,4001.7,0.55]
[1734443810721,0.8318,4002.5,4001.7,0.84500836]
[1734443810966,0.8318,4002.5,4001.9,0.55]
[1734443811130,0.8318,4002.5,4001.7,3.84500836]
[1734443811454,0.8318,4002.5,4001.9,3.55]
[1734443811658,0.8318,4002.5,4001.9,0.55]
[1734443813321,0.8318,4002.5,4002.0,1.20919197]
[1734443813522,0.8318,4002.5,4001.9,0.55]
[1734443813842,0.7539,4003.8,4002.1,0.55]
[1734443814170,0.93339167,4003.8,4002.3,0.55]
[1734443816073,0.7539,4003.8,4002.3,0.55]
[1734443818363,0.7539,4003.8,4002.4,0.7679]
[1734443818659,0.7539,4003.8,4002.5,0.55]
[1734443820536,0.7539,4003.8,4002.3,0.55]
[1734443821446,0.7539,4003.8,4002.5,0.55]
[1734443821647,0.7539,4003.8,4002.3,0.55]
[1734443821875,0.7539,4003.8,4002.5,0.55]
[1734443826693,0.7539,4003.8,4002.3,0.55]
[1734443828987,0.7539,4003.8,4002.0,0.55]
[1734443829694,0.8233,4003.7,4002.0,0.55]
[1734443829878,0.8233,4003.7,4002.0,0.84500836]
[1734443830088,0.8233,4003.6,4002.6,3.0]
[1734443830301,0.8233,4003.6,4002.2,0.55]
[1734443830793,0.8233,4003.6,4002.2,0.29500836]
[1734443831179,0.8233,4003.6,4002.6,3.0]
[1734443831360,0.8233,4003.6,4002.2,0.29500836]
[1734443833465,0.8233,4003.6,4001.7,0.55]
[1734443833666,0.8124,4003.4,4001.9,0.55]
[1734443834428,0.8124,4003.4,4001.8,0.48791668]
[1734443834808,0.8124,4003.4,4001.7,0.55]
[1734443835814,0.8124,4003.4,4001.8,1.21069749]
[1734443836008,0.8124,4003.4,4001.7,0.55]
[1734443836210,0.8124,4003.4,4001.8,1.21064396]
[1734443836524,0.8124,4003.4,4001.9,0.55]
[1734443836679,0.8124,4003.4,4002.0,0.48791668]
[1734443836896,0.8124,4003.4,4001.9,0.84500836]
[1734443837933,0.8124,4003.4,4001.7,0.55]
[1734443838238,0.8631821,4003.3,4001.6,0.55]
[1734443838400,0.7867,4003.2,4001.8,0.55]
[1734443838804,0.7867,4003.2,4002.5,3.0]
[1734443839013,0.7867,4003.2,4001.7,1.58415847]
[1734443839337,0.7867,4003.2,4001.6,3.29500836]
[1734443839338,0.7867,4003.2,4001.9,0.55]
[1734443843175,0.8633654,4003.1,4001.4,1.03415847]
[1734443843335,1.82771667,4002.9,4001.1,1.03415847]
[1734443843517,2.15841866,4003.0,4000.9,1.03415847]
[1734443843518,0.7867,4002.7,4000.9,1.03415847]
[1734443843847,0.7867,4002.5,4000.9,0.25853962]
[1734443844064,0.7867,4002.4,4000.9,0.25853962]
[1734443844273,0.7867,4002.4,4000.6,1.03415847]
[1734443844433,0.7867,4002.4,4000.6,2.24599611]
[1734443844750,1.04101667,4002.4,4000.5,1.03415847]
[1734443844925,0.7867,4002.2,4000.5,1.32916683]
[1734443845249,0.7867,4002.2,4000.6,1.21180657]
[1734443845447,0.96947167,4002.2,4000.7,0.25409734]
[1734443846626,0.96947167,4002.2,4000.6,0.29500836]
[1734443850118,0.96947167,4002.2,4000.2,0.55]
[1734443850345,0.7867,4002.0,4000.2,0.55]
[1734443851418,0.7867,4002.0,4000.2,0.84500836]
[1734443852129,0.7867,4002.0,4000.3,0.29500836]
[1734443852560,0.7867,4002.0,4000.4,0.39727737]
[1734443852858,0.7867,4002.0,4000.6,0.55]
[1734443853253,0.7867,4002.0,4000.2,0.55]
[1734443853454,0.7867,4002.0,4000.1,0.55]
[1734443853800,0.7867,4002.0,4000.2,0.02498845]
[1734443854337,0.7867,4002.0,4000.1,0.84500836]
[1734443854599,0.7867,4002.0,4000.6,3.0]
[1734443854738,0.7867,4002.0,4000.2,0.50017721]
[1734443854937,0.7867,4002.0,4000.3,0.55]
[1734443856090,0.7867,4002.0,4000.2,0.50017721]
[1734443856293,0.7867,4002.0,4000.2,0.55]
[1734443857760,0.7867,4002.0,4000.8,3.0]
[1734443857961,0.7867,4002.0,4000.2,0.55]
[1734443858645,0.7867,4002.0,4000.9,3.0]
[1734443859083,0.7867,4002.0,4000.2,0.55]
[1734443859245,0.7867,4002.0,4000.9,3.0]
[1734443859473,0.7867,4002.0,4000.2,0.55]
[1734443859644,0.7867,4002.0,3999.9,0.12738043]
[1734443859645,0.7867,4002.0,4000.0,0.55]
[1734443859884,0.7867,4002.0,3999.9,0.12738043]
[1734443859885,0.7867,4002.0,3999.9,0.55]
[1734443860878,0.7867,4002.0,4000.1,0.55]
[1734443863092,0.7867,4002.0,4000.9,3.0]
[1734443863247,0.7867,4002.0,4000.1,0.55]
[1734443867455,0.7667,4001.8,3999.6,0.55]
[1734443867779,2.33498509,4001.9,3999.4,0.55]
[1734443867780,0.7667,4001.6,3999.4,0.55]
[1734443869590,0.7667,4001.6,3999.6,0.55]
[1734443870299,0.7667,4001.6,3999.4,0.55]
[1734443870464,0.7667,4001.6,3999.6,0.55]
[1734443870668,0.7667,4001.6,3999.7,0.52870889]
[1734443871095,0.7667,4001.6,3999.4,0.55]
[1734443871296,0.7667,4001.6,3999.6,0.55]
[1734443871685,0.7667,4001.6,3999.5,0.55]
[1734443871881,0.7667,4001.6,3999.6,0.29500836]
[1734443872764,0.7667,4001.6,4000.2,3.0]
[1734443872972,0.7667,4001.6,3999.6,0.29500836]
[1734443873888,0.7667,4001.6,4000.2,3.0]
[1734443874197,0.7667,4001.6,3999.6,0.29500836]
[1734443874393,0.7667,4001.6,3999.7,0.18830559]
[1734443875106,0.7667,4001.6,3999.6,0.29500836]
[1734443875413,0.7667,4001.6,3999.4,0.55]
[1734443875560,0.7667,4001.6,3999.2,3.0]
[1734443875561,0.7667,4001.6,3999.2,0.55]
[1734443875761,0.86208317,4001.5,3999.4,0.55]
[1734443875980,0.7667,4001.5,3999.4,0.55]
[1734443876192,0.7667,4001.3,3999.3,0.55]
[1734443876371,0.7667,4001.3,3999.1,0.55]
[1734443876575,0.7667,4001.3,3999.3,0.55]
[1734443877298,0.7667,4001.3,3999.2,0.29500836]
[1734443877458,0.86229159,4001.2,3999.2,0.29500836]
[1734443877667,0.7667,4001.0,3999.7,3.0]
[1734443877973,0.7667,4001.0,3999.1,0.55]
[1734443878379,0.7667,4001.0,3999.0,0.55]
[1734443878886,0.7667,4001.0,3999.0,0.81954516]
[1734443880708,0.7667,4001.0,3999.0,0.55]
[1734443880860,0.7667,4001.0,3999.2,0.55]
[1734443882197,0.7667,4001.0,3999.4,4.58804751]
[1734443882506,0.7667,4001.0,3999.6,0.55]
[1734443882663,0.7667,4001.0,3999.5,0.55]
[1734443882865,0.7667,4001.0,3999.7,0.55]
[1734443883170,0.7667,4001.0,3999.4,1.03804751]
[1734443883171,0.7667,4001.0,3999.9,0.55]
[1734443884026,0.7667,4001.0,3999.5,0.55]
[1734443884226,0.7667,4001.0,3999.7,0.55]
[1734443884569,0.7667,4001.0,3999.6,0.55]
[1734443885395,0.7667,4001.0,3999.5,0.55]
[1734443885603,0.7667,4001.0,3999.7,0.55]
[1734443886988,0.7667,4001.0,3999.6,0.54762227]
[1734443887590,0.7667,4001.0,3999.2,1.03804751]
[1734443887591,1.04227175,4001.0,3999.2,1.03804751]
[1734443887789,0.7519,4000.9,3999.2,5.22757511]
[1734443888021,0.7519,4000.9,3999.3,4.1895276]
[1734443888022,0.7519,4000.7,3999.3,4.1895276]
[1734443888311,0.7519,4000.7,3999.1,1.5985216]
[1734443888513,0.7519,4000.7,3999.2,4.18922236]
[1734443888739,0.7519,4000.7,3999.3,2.08055609]
[1734443889020,0.7519,4000.7,3999.3,0.89133373]
[1734443889328,0.7519,4000.5,3999.3,0.89133373]
[1734443889476,0.7519,4000.5,3999.1,0.55]
[1734443889679,0.7519,4000.5,3999.2,1.18985933]
[1734443889983,0.7519,4000.5,3998.8,0.12662096]
[1734443889984,0.7519,4000.3,3998.8,1.03804751]
[1734443890234,1.61626195,4000.2,3998.8,1.19002361]
[1734443890386,0.7519,4000.1,3998.9,0.22280711]
[1734443890592,0.7519,4000.1,3998.7,1.03804751]
[1734443890864,0.7519,4000.1,3998.8,1.18985045]
[1734443891011,0.7519,4000.1,3998.6,1.03804751]
[1734443891207,0.7519,4000.1,3998.6,2.22785753]
[1734443891424,0.7519,4000.1,3998.7,4.18981002]
[1734443891645,0.7519,4000.1,3998.8,4.75454896]
[1734443891847,0.7519,4000.1,3998.8,0.56473894]
[1734443892750,0.7519,4000.1,3998.7,0.29497861]
[1734443892909,0.7519,4000.1,3998.8,1.1890858]
[1734443893249,0.7519,4000.1,3999.0,0.55]
[1734443893947,0.7519,4000.1,3999.1,1.18879371]
[1734443894147,0.7519,4000.1,3999.0,0.84497861]
[1734443894349,0.7519,4000.1,3999.2,3.55]
[1734443894514,0.7519,4000.1,3999.2,0.55]
[1734443894714,0.7519,4000.1,3999.2,0.84497861]
[1734443894941,0.7519,4000.1,3999.5,0.55]
[1734443897658,0.7519,4001.1,4000.2,0.55]
[1734443898819,0.7519,4001.1,4000.6,2.3353839]
[1734443901350,0.65215,4001.1,4000.6,2.3353839]
[1734443901555,0.65215,4001.1,4001.0,2.3353839]
[1734443902159,0.00858,4001.1,4001.0,2.3353839]
[1734443902360,1.04227175,4002.2,4001.1,3.0]
[1734443902660,0.86362328,4002.1,4001.1,3.0]
[1734443902862,1.56340762,4002.4,4001.1,3.0]
[1734443902863,1.04227175,4002.2,4001.1,3.0]
[1734443903651,3.20135135,4002.2,4001.1,3.0]
[1734443903957,0.86363184,4002.1,4001.1,3.0]
[1734443904188,0.34693112,4002.1,4001.1,3.0]
[1734443904330,0.86357815,4002.0,4001.1,3.0]
[1734443904543,0.34693112,4002.1,4001.1,3.0]
[1734443905237,0.23,4002.0,4001.1,3.0]
[1734443907166,0.23,4002.0,4001.0,0.23353839]
[1734443907365,0.23,4002.0,4000.6,2.3353839]
[1734443907366,0.35722718,4002.0,4000.6,2.3353839]
[1734443907572,0.23,4001.9,4000.6,2.3353839]
[1734443909990,0.23,4001.9,4000.3,3.0]
[1734443910272,0.23,4001.7,4000.3,3.0]
[1734443910774,1.04227175,4001.8,4000.1,0.51951767]
[1734443910775,0.23,4001.5,4000.1,0.51951767]
[1734443911131,0.23,4001.4,3999.8,2.94251309]
[1734443911467,0.23,4001.2,3999.8,2.94251309]
[1734443912231,0.23,4001.2,3999.9,3.0]
[1734443913985,0.23,4001.2,3999.9,3.28114528]
[1734443914208,0.23,4001.2,4000.2,2.3353839]
[1734443914366,0.23,4001.2,4000.3,0.28114528]
[1734443914684,0.23,4001.2,4000.3,3.28114528]
[1734443915890,0.23,4001.2,4000.4,0.55]
[1734443925233,0.23,4001.2,4000.2,3.55]
[1734443925383,0.23,4001.2,3999.8,4.03804751]
[1734443925577,0.23,4001.2,3999.9,1.18942188]
[1734443928959,0.23,4001.2,4000.1,2.3353839]
[1734443933564,0.23,4001.2,4000.0,3.0]
[1734443933731,1.04227175,4001.5,3999.7,2.3353839]
[1734443933732,0.86382499,4001.1,3999.7,2.3353839]
[1734443933932,0.23,4000.9,3999.7,2.3353839]
[1734443936333,0.23,4000.9,3999.4,4.03804751]
[1734443936639,0.23,4000.9,3999.5,2.77748113]
[1734443936857,0.23,4000.9,3999.6,1.18943362]
[1734443937056,0.23,4000.9,3999.5,0.55]
[1734443937257,0.23,4000.9,3999.6,4.95867296]
[1734443937463,0.23,4000.9,3999.6,0.76928314]
[1734443938487,0.23,4000.9,3999.7,1.18972482]
[1734443938687,0.23,4000.9,3999.6,0.76928314]
[1734443938886,0.23,4000.9,3999.7,1.1897206]
[1734443939091,0.23,4000.9,3999.8,0.57509602]
[1734443939545,0.86483001,4000.8,3999.8,0.57509602]
[1734443939743,0.23,4000.7,3999.8,0.57509602]
[1734443941242,0.23,4000.7,4000.1,3.1081839]
[1734443941443,0.23,4000.7,4000.2,3.28114528]
[1734443941681,0.23,4001.2,4000.3,0.63893292]
[1734443945475,0.23,4001.2,4000.5,5.3353839]
[1734443945680,0.23,4001.2,4000.6,0.55]
[1734443945995,0.23,4001.2,4000.6,3.55]
[1734443947491,0.23,4001.2,4000.3,1.67698043]
[1734443947698,0.23,4001.2,4000.4,2.12419647]
[1734443947910,0.23,4001.2,4000.4,0.93422356]
[1734443948124,0.23,4001.2,4000.2,0.55]
[1734443948297,0.23,4001.2,4000.1,1.03804751]
[1734443948298,0.23,4001.2,4000.1,2.8853839]
[1734443948499,0.23,4001.2,4000.2,4.19035616]
[1734443948812,0.23,4001.2,4000.3,1.19035616]
[1734443949874,0.23,4001.2,4000.2,3.0]
[1734443950231,0.23,4001.2,4000.3,1.88288701]
[1734443950385,0.23,4001.2,4000.3,0.69234314]
[1734443951728,0.23,4001.2,4000.5,2.3353839]
[1734443953017,0.23,4001.2,4000.6,1.1904801]
[1734443953216,0.23,4001.2,4000.5,2.3353839]
[1734443953424,0.23,4001.2,4000.6,4.92543706]
[1734443953721,0.23,4001.2,4000.6,3.73497135]
[1734443954483,1.04640554,4001.6,4001.1,4.6707678]
[1734443954695,0.23,4003.2,4001.7,0.55]
[1734443954922,0.23,4003.2,4002.6,3.55]
[1734443955222,0.23,4003.9,4003.0,2.3353839]
[1734443955423,0.23,4003.9,4003.1,3.53353839]
[1734443955716,0.23,4003.9,4003.1,4.4409424]
[1734443955891,0.23,4003.9,4003.0,2.3353839]
[1734443958186,0.23,4003.9,4003.4,2.3353839]
[1734443960959,0.23,4004.4,4003.8,2.3353839]
[1734443961258,0.23,4004.4,4004.2,2.3353839]
[1734443964225,0.23,4004.4,4003.8,2.3353839]
[1734443964867,0.23,4004.4,4003.6,3.0]
[1734443965068,0.23,4004.4,4003.0,2.96845458]
[1734443967228,0.23,4004.4,4003.0,2.3353839]
[1734443969059,0.23,4004.4,4003.1,3.63307068]
[1734443972315,0.23,4004.4,4003.0,2.3353839]
[1734443972572,0.2767135,4004.4,4003.0,2.3353839]
[1734443974158,0.23,4004.4,4003.0,2.3353839]